fUST/lending_fUST_20250107
["ID","MTS","AMOUNT","RATE_DAILY","PERIOD"]
[347961554,1736249444172,-500.0,0.00018502,2]
[347961556,1736249444180,-151.0,0.00018503,2]
[347961558,1736249444188,-151.0,0.00018503,2]
[347961560,1736249444195,-175.0,0.00018503,2]
[347961562,1736249444203,-202.60321626,0.00018503,2]
[347961564,1736249444211,-2006.70114508,0.00018503,5]
[347961566,1736249444221,-970.76,0.00018503,5]
[347961785,1736249446385,-500.0,0.00015958,2]
[347961788,1736249446394,-855003.46201742,0.00018503,5]
[347961790,1736249446406,-1245.97,0.00018503,5]
[347961811,1736249446602,-15556.96705877,0.00018503,5]
[347961961,1736249819593,459.0,0.00015001,2]
[347961962,1736249829201,1037.24032441,0.00015001,2]
[347961964,1736250101297,500.0,0.00014862,2]
[347961965,1736250135372,400.0,0.00013973,2]
[347961966,1736250254581,766.18900771,0.00015001,2]
[347962176,1736250634493,-479.0,0.00015277,2]
[347962178,1736250634505,-101.80276294,0.00015277,2]
[347962180,1736250634515,-185.43329444,0.00015429,2]
[347962182,1736250634525,-1657.15177753,0.00015429,2]
[347962184,1736250634536,-151.0,0.000155,2]
[347962186,1736250634546,-151.0,0.00015525,2]
[347962188,1736250634555,-300.0,0.00015527,2]
[347962190,1736250634565,-10565.8542774,0.00015527,2]
[347962192,1736250634577,-23345.45262336,0.00015527,2]
[347962195,1736250634589,-42700.0,0.00015527,2]
[347962213,1736250634771,-1515.02900617,0.00015527,2]
[347962216,1736250634784,-385.09999,0.00015527,2]
[347962517,1736250638489,-500.0,0.00015526,2]
[347962519,1736250638499,-463.59776024,0.00015526,2]
[347962521,1736250638508,-500.0,0.00015526,2]
[347962523,1736250638518,-500.0,0.00015526,2]
[347962525,1736250638527,-163.18945706,0.00015526,2]
[347962527,1736250638537,-500.0,0.00015526,2]
[347962529,1736250638547,-454.43578726,0.00015526,2]
[347962531,1736250638560,-45.56421274,0.00015526,2]
[347962533,1736250638569,-500.0,0.00015526,2]
[347962535,1736250638580,-500.0,0.00015526,2]
[347962537,1736250638590,-500.0,0.00015526,2]
[347962539,1736250638600,-500.0,0.00015526,2]
[347962541,1736250638610,-500.0,0.00015526,2]
[347962542,1736250638623,-440.530148,0.00015526,2]
[347962544,1736250638633,-500.0,0.00015526,2]
[347962547,1736250638643,-500.0,0.00015526,2]
[347962548,1736250638653,-90.97669966,0.00015526,2]
[347962551,1736250638667,-409.02330034,0.00015526,2]
[347962553,1736250638677,-500.0,0.00015526,2]
[347962555,1736250638687,-500.0,0.00015526,2]
[347962557,1736250638696,-500.0,0.00015526,2]
[347962559,1736250638706,-500.0,0.00015526,2]
[347962561,1736250638717,-204.5437498,0.00015526,2]
[347962563,1736250638728,-500.0,0.00015526,2]
[347962565,1736250638739,-610.86718319,0.00015526,2]
[347962567,1736250638750,-500.0,0.00015526,2]
[347962569,1736250638760,-500.0,0.00015526,2]
[347962571,1736250638771,-500.0,0.00015526,2]
[347962573,1736250638780,-500.0,0.00015526,2]
[347962575,1736250638790,-500.0,0.00015526,2]
[347962577,1736250638799,-96.64202097,0.00015526,2]
[347962579,1736250638811,-403.35797903,0.00015526,2]
[347962581,1736250638821,-440.83284471,0.00015526,2]
[347962583,1736250638833,-59.16715529,0.00015526,2]
[347962586,1736250638843,-500.0,0.00015526,2]
[347962588,1736250638857,-500.0,0.00015526,2]
[347962590,1736250638867,-500.0,0.00015526,2]
[347962592,1736250638877,-500.0,0.00015526,2]
[347962593,1736250638887,-500.0,0.00015526,2]
[347962596,1736250638899,-430.91783971,0.00015526,2]
[347962598,1736250638913,-69.08216029,0.00015526,2]
[347962600,1736250638925,-500.0,0.00015526,2]
[347962601,1736250638934,-500.0,0.00015526,2]
[347962603,1736250638944,-500.0,0.00015526,2]
[347962605,1736250638957,-500.0,0.00015526,2]
[347962608,1736250638969,-500.0,0.00015526,2]
[347962610,1736250638980,-500.0,0.00015526,2]
[347962612,1736250638991,-88.34327011,0.00015526,2]
[347962614,1736250639004,-411.65672989,0.00015526,2]
[347962616,1736250639014,-88.11893827,0.00015526,2]
[347962618,1736250639026,-411.88106173,0.00015526,2]
[347962620,1736250639036,-500.0,0.00015526,2]
[347962622,1736250639045,-500.0,0.00015526,2]
[347962624,1736250639056,-500.0,0.00015526,2]
[347962626,1736250639065,-500.0,0.00015526,2]
[347962628,1736250639075,-500.0,0.00015526,2]
[347962630,1736250639084,-500.0,0.00015526,2]
[347962632,1736250639094,-500.0,0.00015526,2]
[347962633,1736250639104,-500.0,0.00015526,2]
[347962636,1736250639115,-500.0,0.00015526,2]
[347962637,1736250639124,-348.23415988,0.00015526,2]
[347962640,1736250639134,-500.0,0.00015526,2]
[347962642,1736250639144,-500.0,0.00015526,2]
[347962643,1736250639153,-500.0,0.00015526,2]
[347962645,1736250639165,-500.0,0.00015526,2]
[347962647,1736250639175,-500.0,0.00015526,2]
[347962649,1736250639184,-500.0,0.00015526,2]
[347962651,1736250639194,-500.0,0.00015526,2]
[347962653,1736250639204,-500.0,0.00015526,2]
[347962655,1736250639214,-500.0,0.00015526,2]
[347962657,1736250639224,-500.0,0.00015526,2]
[347962659,1736250639234,-500.0,0.00015526,2]
[347962661,1736250639244,-500.0,0.00015526,2]
[347962664,1736250639254,-5870.24565684,0.00015527,2]
[347962666,1736250639267,-5317.65270667,0.00015527,2]
[347962669,1736250639284,-20168.1983255,0.00015527,2]
[347962671,1736250639296,-4143.46741406,0.00015527,2]
[347962673,1736250639307,-223.22504237,0.00015528,2]
[347962675,1736250639317,-226.29889069,0.00015528,2]
[347962677,1736250639327,-500.0,0.00015528,2]
[347962679,1736250639337,-459.48208841,0.00015528,2]
[347962681,1736250639347,-196.45599594,0.0001554,2]
[347962683,1736250639356,-2339.97191443,0.0001554,2]
[347962685,1736250639366,-24900.0,0.00015591,2]
[347962687,1736250639375,-191.176316,0.00015591,2]
[347962689,1736250639385,-152.0,0.00015599,2]
[347962691,1736250639395,-500.0,0.000156,2]
[347962693,1736250639406,-502.93315716,0.000156,2]
[347962695,1736250639419,-271.59758712,0.000156,2]
[347962697,1736250639429,-500.0,0.000156,2]
[347962699,1736250639438,-468.80595055,0.000156,2]
[347962701,1736250639448,-200.18455524,0.000156,2]
[347962703,1736250639458,-151.0,0.000158,2]
[347962705,1736250639468,-268.32856016,0.000159,2]
[347962707,1736250639478,-500.0,0.000159,2]
[347962709,1736250639489,-513.80155854,0.000159,2]
[347962711,1736250639499,-500.0,0.000159,2]
[347962713,1736250639509,-500.0,0.000159,2]
[347962715,1736250639518,-166.1,0.00016073,2]
[347962717,1736250639528,-151.0,0.000161,2]
[347962719,1736250639538,-1001.92214031,0.00016148,2]
[347962721,1736250639548,-1000.0,0.00016148,2]
[347962723,1736250639558,-151.0,0.000164,2]
[347962725,1736250639568,-185.43329444,0.00016432,2]
[347962727,1736250639578,-165.21065165,0.00016438,2]
[347962729,1736250639588,-505.85895891,0.00016448,2]
[347962731,1736250639598,-500.64186359,0.00016448,2]
[347962733,1736250639608,-504.0903109,0.00016448,2]
[347962735,1736250639617,-642.22176477,0.00016529,2]
[347962737,1736250639627,-232.691,0.00016621,2]
[347962739,1736250639636,-151.0,0.000167,2]
[347962741,1736250639646,-6624.3617996,0.00016717,2]
[347962743,1736250639655,-420.0,0.00016984,2]
[347962745,1736250639666,-151.0,0.00017,2]
[347962746,1736250639675,-1500.0,0.0001715,2]
[347962749,1736250639685,-151.0,0.000173,2]
[347962750,1736250639695,-185.43329444,0.00017436,2]
[347962752,1736250639705,-499.0,0.00017534,2]
[347962754,1736250639714,-631.844,0.0001757,2]
[347962755,1736250639724,-465.73563209,0.00017584,2]
[347962756,1736250639733,-151.0,0.000176,2]
[347962757,1736250639742,-151.0,0.000176,2]
[347962758,1736250639752,-500.0,0.00017602,2]
[347962759,1736250639761,-642.22176477,0.00017626,2]
[347962760,1736250639771,-3967.83082155,0.000178,2]
[347962761,1736250639780,-3967.83082135,0.000178,2]
[347962762,1736250639790,-3967.83082135,0.000178,2]
[347962763,1736250639799,-3967.83082135,0.000178,2]
[347962764,1736250639809,-3967.83082135,0.00017866,2]
[347962765,1736250639819,-151.0,0.000179,2]
[347962766,1736250639829,-151.0,0.000179,2]
[347962768,1736250639839,-167.0,0.00018089,2]
[347962770,1736250639851,-167.0,0.00018089,2]
[347962772,1736250639861,-167.0,0.00018089,2]
[347962774,1736250639872,-3967.83082135,0.00018107,2]
[347962776,1736250639883,-151.0,0.000182,2]
[347962778,1736250639892,-151.0,0.000182,2]
[347962780,1736250639902,-151.0,0.000182,2]
[347962782,1736250639913,-153.0,0.00018201,2]
[347962784,1736250639923,-153.0,0.00018201,2]
[347962786,1736250639933,-153.0,0.00018201,2]
[347962788,1736250639943,-153.0,0.00018201,2]
[347962790,1736250639952,-153.0,0.00018201,2]
[347962792,1736250639964,-153.0,0.00018201,2]
[347962794,1736250639974,-153.0,0.00018201,2]
[347962796,1736250639984,-153.0,0.00018201,2]
[347962798,1736250639993,-153.0,0.00018201,2]
[347962801,1736250640003,-153.0,0.00018201,2]
[347962803,1736250640014,-263.04,0.00018201,2]
[347962805,1736250640024,-10651.72567472,0.00018242,2]
[347962807,1736250640033,-244.6154761,0.00018317,2]
[347962809,1736250640043,-151.0,0.00018325,2]
[347962812,1736250640052,-151.0,0.00018325,2]
[347962814,1736250640062,-151.0,0.00018325,2]
[347962816,1736250640072,-151.0,0.00018325,2]
[347962820,1736250640081,-151.0,0.00018325,2]
[347962824,1736250640091,-151.0,0.00018325,2]
[347962826,1736250640100,-151.0,0.00018325,2]
[347962829,1736250640109,-151.0,0.00018325,2]
[347962831,1736250640118,-151.0,0.00018325,2]
[347962834,1736250640128,-151.0,0.00018325,2]
[347962836,1736250640138,-151.0,0.00018325,2]
[347962838,1736250640148,-151.0,0.00018325,2]
[347962840,1736250640157,-3967.83082135,0.00018348,2]
[347962842,1736250640172,-151.0,0.000184,2]
[347962844,1736250640181,-383.979,0.00018418,2]
[347962846,1736250640191,-263.0,0.0001843,2]
[347962848,1736250640200,-2420.13709921,0.00018439,2]
[347962861,1736250640313,-185.43329444,0.00018439,2]
[347962862,1736250640323,-2007.68233292,0.00018447,2]
[347962865,1736250640333,-465.0367816,0.00018464,2]
[347962867,1736250640343,-619.0,0.000185,2]
[347962869,1736250640352,-1920.54588072,0.000185,2]
[347962871,1736250640361,-151.0,0.00018503,2]
[347962873,1736250640371,-151.0,0.00018503,2]
[347962875,1736250640380,-151.0,0.00018503,2]
[347962877,1736250640390,-151.721553,0.00018503,2]
[347962879,1736250640400,-151.0,0.00018503,2]
[347962881,1736250640410,-151.0,0.00018503,2]
[347962883,1736250640422,-151.0,0.00018503,2]
[347962885,1736250640431,-151.0,0.00018503,2]
[347962887,1736250640445,-151.0,0.00018503,2]
[347962889,1736250640455,-151.0,0.00018503,2]
[347962890,1736250640467,-151.0,0.00018503,2]
[347962892,1736250640478,-151.0,0.00018503,2]
[347962894,1736250640488,-151.0,0.00018503,2]
[347962896,1736250640503,-151.0,0.00018503,2]
[347962898,1736250640513,-151.0,0.00018503,2]
[347962900,1736250640524,-151.0,0.00018503,2]
[347962903,1736250640534,-151.0,0.00018503,2]
[347962904,1736250640543,-151.0,0.00018503,2]
[347962907,1736250640553,-151.0,0.00018503,2]
[347962909,1736250640563,-151.0,0.00018503,2]
[347962910,1736250640572,-151.0,0.00018503,2]
[347962913,1736250640582,-151.0,0.00018503,2]
[347962915,1736250640591,-361.325506,0.00018503,2]
[347962916,1736250640600,-361.325506,0.00018503,2]
[347962919,1736250640609,-361.325506,0.00018503,2]
[347962920,1736250640619,-361.325506,0.00018503,2]
[347962922,1736250640628,-307.523302,0.00018503,2]
[347962925,1736250640638,-307.523302,0.00018503,2]
[347962926,1736250640648,-307.523302,0.00018503,2]
[347962928,1736250640657,-307.523302,0.00018503,2]
[347962930,1736250640671,-1923.010513,0.00018503,2]
[347962933,1736250640681,-1923.010513,0.00018503,2]
[347962935,1736250640692,-1923.010513,0.00018503,2]
[347962937,1736250640701,-1923.010513,0.00018503,2]
[347962939,1736250640712,-151.0,0.00018503,2]
[347962941,1736250640722,-151.0,0.00018503,2]
[347962943,1736250640731,-151.0,0.00018503,2]
[347962945,1736250640740,-151.0,0.00018503,2]
[347962947,1736250640749,-151.0,0.00018503,2]
[347962949,1736250640759,-151.0,0.00018503,2]
[347962951,1736250640768,-44470.27271565,0.00018503,2]
[347962957,1736250640812,-52960.59285987,0.00018503,2]
[347962959,1736250640822,-30550.59545108,0.00018503,2]
[347962961,1736250640831,-98988.8116914,0.00018503,5]
[347962963,1736250640842,-1036.134,0.00018503,5]
[347962965,1736250640857,-17207.30161571,0.00018503,5]
[347962969,1736250640886,-10005.77914135,0.00018503,5]
[347962999,1736250641171,-634.56425145,0.00018503,5]
[347963001,1736250641183,-30270.0,0.00018503,5]
[347963003,1736250641195,-2114.0871003,0.00018503,5]
[347963006,1736250641206,-8080.289,0.00018503,5]
[347963008,1736250641218,-322.7,0.00018503,5]
[347963012,1736250641245,-303450.0,0.00018503,5]
[347963014,1736250641256,-570.63803293,0.00018503,5]
[347963016,1736250641267,-358367.21546565,0.00018503,5]
[347963018,1736250641278,-329.6817954,0.00018503,5]
[347963020,1736250641290,-2354.00002703,0.00018503,5]
[347963282,1736250643764,-705.96,0.00018503,5]
[347963284,1736250643777,-37617.78720613,0.00018503,5]
[347963287,1736250643789,-615.89240559,0.00018503,5]
[347963289,1736250643800,-59371.60734318,0.00018503,5]
[347963291,1736250643812,-77260.31331175,0.00018503,5]
[347963293,1736250643822,-152.0,0.00018539,2]
[347963295,1736250643832,-152.0,0.00018539,2]
[347963297,1736250643842,-152.0,0.00018539,2]
[347963299,1736250643856,-167.0,0.00018566,2]
[347963301,1736250643865,-156.0,0.00018566,2]
[347963304,1736250643875,-156.0,0.00018566,2]
[347963306,1736250643885,-167.17,0.00018566,2]
[347963308,1736250643895,-257.917,0.00018574,2]
[347963310,1736250643904,-2081.0,0.00018574,2]
[347963312,1736250643915,-535.0,0.00018574,2]
[347963313,1736250643925,-651.59968808,0.00018574,2]
[347963318,1736250643964,-516.831,0.00018354,2]
[347963320,1736250643974,-1665.40031192,0.00018574,2]
[347963322,1736250643983,-150.098,0.00018574,2]
[347963324,1736250643993,-394.0,0.00018574,2]
[347963326,1736250644002,-273.67068808,0.00018574,2]
[347963541,1736250646499,-136.99231192,0.00018574,2]
[347963544,1736250646508,-587.0,0.00018578,2]
[347963547,1736250646518,-500.0000009,0.0001858,2]
[347963550,1736250646527,-3967.83082135,0.0001859,2]
[347963552,1736250646536,-869.17686583,0.000186,2]
[347963581,1736250646668,-852.96296461,0.000186,2]
[347963701,1736251369900,400.0,0.00013973,2]
[347963702,1736251437480,204.5269,0.00025,120]
[347963812,1736251833324,-300.0,0.00015516,2]
[347963813,1736251833334,-246.87002,0.00015516,2]
[347963814,1736251833345,-2054.12998,0.00015516,2]
[347963815,1736251833359,-3445.9112768,0.00015591,2]
[347963816,1736251833371,-1247.550005,0.00015591,2]
[347963817,1736251833388,-2426.74656905,0.00015591,2]
[347963818,1736251833400,-17779.79214915,0.00015591,2]
[347963819,1736251833410,-500.0,0.000156,2]
[347963820,1736251833420,-155.68855529,0.000156,2]
[347963821,1736251833430,-271.03499006,0.000156,2]
[347963822,1736251833440,-500.0,0.00015958,2]
[347963824,1736251833449,-191.1763178,0.00016052,2]
[347963826,1736251833459,-420.0,0.00016973,2]
[347963828,1736251833469,-605.473,0.0001767,2]
[347963830,1736251833478,-499.0,0.00017799,2]
[347963832,1736251833488,-2988.95199028,0.000178,2]
[347963834,1736251833497,-2988.9519901,0.000178,2]
[347963836,1736251833507,-2988.9519901,0.000178,2]
[347963838,1736251833516,-2988.9519901,0.000178,2]
[347963840,1736251833525,-2988.9519901,0.00017866,2]
[347963842,1736251833535,-278.874569,0.00018,2]
[347963844,1736251833548,-2988.9519901,0.00018107,2]
[347963846,1736251833557,-2988.9519901,0.00018348,2]
[347963848,1736251833567,-600.0,0.00018411,2]
[347963850,1736251833576,-244.6154762,0.00018414,2]
[347963852,1736251833587,-372.805,0.0001843,2]
[347963854,1736251833597,-618.0,0.000185,2]
[347963856,1736251833613,-151.0,0.00018503,2]
[347963858,1736251833625,-151.0,0.00018503,2]
[347963860,1736251833634,-151.0,0.00018503,2]
[347963862,1736251833644,-151.0,0.00018503,2]
[347963864,1736251833653,-269.285814,0.00018503,2]
[347963866,1736251833663,-410.570421,0.00018503,2]
[347963868,1736251833672,-410.570421,0.00018503,2]
[347963870,1736251833681,-410.570421,0.00018503,2]
[347963872,1736251833691,-410.570421,0.00018503,2]
[347963874,1736251833701,-151.0,0.00018503,2]
[347963876,1736251833710,-718.018083,0.00018503,2]
[347963878,1736251833721,-718.018083,0.00018503,2]
[347963880,1736251833731,-718.018083,0.00018503,2]
[347963882,1736251833741,-718.018083,0.00018503,2]
[347963884,1736251833750,-718.018083,0.00018503,2]
[347963886,1736251833760,-718.018083,0.00018503,2]
[347963888,1736251833769,-563.509856,0.00018503,2]
[347963890,1736251833779,-563.509856,0.00018503,2]
[347963892,1736251833789,-563.509856,0.00018503,2]
[347963894,1736251833799,-563.509856,0.00018503,2]
[347963896,1736251833808,-278.0,0.0001853,2]
[347963898,1736251833818,-75224.63188164,0.0001853,5]
[347963900,1736251833828,-587.0,0.00018566,2]
[347963902,1736251833837,-153.749,0.00018583,2]
[347963904,1736251833846,-150.0,0.00018583,2]
[347963906,1736251833857,-535.0,0.00018583,2]
[347963908,1736251833867,-2081.0,0.00018583,2]
[347963910,1736251833876,-2317.0,0.00018583,2]
[347963912,1736251833885,-2988.9519901,0.0001859,2]
[347963914,1736251833895,-12510.12016956,0.000186,2]
[347963916,1736251833905,-12140.97,0.000186,2]
[347963918,1736251833913,-154.06,0.000186,2]
[347963920,1736251833923,-5977.39,0.000186,2]
[347963922,1736251833934,-600.0,0.00018603,2]
[347963924,1736251833943,-153.0,0.00018696,2]
[347963927,1736251833953,-153.0,0.00018696,2]
[347963929,1736251833963,-206.75,0.00018696,2]
[347963931,1736251833973,-446.58392863,0.00018698,2]
[347963933,1736251833983,-500.0,0.00018699,2]
[347963935,1736251833993,-158.40922348,0.00018699,2]
[347963936,1736251834002,-156.25752965,0.00018699,2]
[347963939,1736251834012,-171.63746188,0.00018699,2]
[347963941,1736251834021,-10000.0,0.000187,2]
[347963943,1736251834031,-608.0,0.0001874,2]
[347963945,1736251834041,-935.07553636,0.00018794,2]
[347963947,1736251834050,-500.0,0.00018809,2]
[347963948,1736251834059,-500.0,0.00018809,2]
[347963950,1736251834070,-500.0,0.00018809,2]
[347963953,1736251834079,-240.18616352,0.00018809,2]
[347963955,1736251834089,-500.0,0.00018809,2]
[347963957,1736251834099,-500.0,0.00018809,2]
[347963958,1736251834109,-2988.9519901,0.00018831,2]
[347963960,1736251834119,-168.02,0.00018877,2]
[347963963,1736251834128,-154.0,0.00018877,2]
[347963964,1736251834138,-154.0,0.00018877,2]
[347963966,1736251834148,-151.64,0.00018877,2]
[347963969,1736251834158,-1999.99,0.00018904,7]
[347963971,1736251834168,-546.09873092,0.0001898,2]
[347963973,1736251834178,-200.26017857,0.00019,2]
[347963975,1736251834187,-1133.13309889,0.00019,2]
[347963977,1736251834197,-175.0,0.00019,2]
[347963979,1736251834206,-742.0,0.00019,2]
[347963981,1736251834216,-151.0,0.00019,2]
[347963983,1736251834226,-151.0,0.00019,2]
[347963985,1736251834235,-151.0,0.00019,2]
[347963987,1736251834244,-410.570421,0.00019,2]
[347963989,1736251834254,-410.570421,0.00019,2]
[347963991,1736251834263,-718.018083,0.00019,2]
[347963993,1736251834272,-718.018083,0.00019,2]
[347963995,1736251834282,-150.0,0.00019,2]
[347963997,1736251834292,-372.70768479,0.00019067,5]
[347963999,1736251834302,-563.509856,0.00019067,2]
[347964001,1736251834311,-563.509856,0.00019067,2]
[347964003,1736251834321,-151.0,0.00019072,2]
[347964005,1736251834331,-151.0,0.00019072,2]
[347964007,1736251834340,-2988.9519901,0.00019072,2]
[347964009,1736251834349,-2178.12338928,0.00019078,2]
[347964011,1736251834361,-151.0,0.00019079,2]
[347964013,1736251834371,-500.0,0.00019079,2]
[347964015,1736251834383,-500.0,0.00019079,2]
[347964017,1736251834394,-258.05040359,0.00019079,2]
[347964019,1736251834404,-150.03,0.00019079,2]
[347964021,1736251834414,-150.03,0.00019079,2]
[347964023,1736251834425,-150.11,0.00019079,2]
[347964025,1736251834437,-501.0,0.00019079,2]
[347964027,1736251834447,-500.0,0.00019079,2]
[347964029,1736251834457,-150.03,0.00019079,2]
[347964031,1736251834466,-150.03,0.00019079,2]
[347964033,1736251834476,-150.03,0.00019079,2]
[347964035,1736251834485,-150.03,0.00019079,2]
[347964037,1736251834494,-152.34592464,0.00019079,2]
[347964039,1736251834503,-150.03,0.00019079,2]
[347964041,1736251834512,-150.85975222,0.00019079,2]
[347964043,1736251834521,-150.03,0.00019079,2]
[347964045,1736251834530,-150.03,0.00019079,2]
[347964047,1736251834541,-83309.67322598,0.00019088,7]
[347964397,1736251838644,-189.39374998,0.00015516,2]
[347964399,1736251838654,-500.0,0.00015516,2]
[347964401,1736251838664,-500.0,0.00015516,2]
[347964403,1736251838674,-500.0,0.00015516,2]
[347964405,1736251838683,-434.82341599,0.00015516,2]
[347964407,1736251838693,-500.0,0.00015516,2]
[347964409,1736251838703,-500.0,0.00015516,2]
[347964411,1736251838713,-164.71097174,0.00015516,2]
[347964413,1736251838725,-335.28902826,0.00015516,2]
[347964415,1736251838735,-500.0,0.00015516,2]
[347964417,1736251838744,-500.0,0.00015516,2]
[347964419,1736251838753,-500.0,0.00015516,2]
[347964421,1736251838763,-500.0,0.00015516,2]
[347964423,1736251838772,-500.0,0.00015516,2]
[347964425,1736251838782,-500.0,0.00015516,2]
[347964427,1736251838791,-500.0,0.00015516,2]
[347964429,1736251838801,-500.0,0.00015516,2]
[347964431,1736251838810,-500.0,0.00015516,2]
[347964433,1736251838819,-500.0,0.00015516,2]
[347964435,1736251838829,-500.0,0.00015516,2]
[347964437,1736251838838,-500.0,0.00015516,2]
[347964439,1736251838848,-500.0,0.00015516,2]
[347964441,1736251838858,-500.0,0.00015516,2]
[347964443,1736251838867,-500.0,0.00015516,2]
[347964445,1736251838878,-500.0,0.00015516,2]
[347964447,1736251838887,-500.0,0.00015516,2]
[347964450,1736251838897,-500.0,0.00015516,2]
[347964452,1736251838907,-500.0,0.00015516,2]
[347964454,1736251838916,-500.0,0.00015516,2]
[347964456,1736251838926,-500.0,0.00015516,2]
[347964458,1736251838935,-178.98524258,0.00015516,2]
[347964460,1736251838946,-500.0,0.00015516,2]
[347964462,1736251838958,-350.39409028,0.00015516,2]
[347964464,1736251838968,-500.0,0.00015516,2]
[347964466,1736251838979,-500.0,0.00015516,2]
[347964468,1736251838988,-500.0,0.00015516,2]
[347964470,1736251838997,-500.0,0.00015516,2]
[347964472,1736251839007,-500.0,0.00015516,2]
[347964474,1736251839016,-500.0,0.00015516,2]
[347964476,1736251839026,-500.0,0.00015516,2]
[347964478,1736251839035,-500.0,0.00015516,2]
[347964480,1736251839046,-500.0,0.00015516,2]
[347964482,1736251839056,-500.0,0.00015516,2]
[347964484,1736251839066,-500.0,0.00015516,2]
[347964486,1736251839076,-500.0,0.00015516,2]
[347964488,1736251839085,-500.0,0.00015516,2]
[347964490,1736251839095,-500.0,0.00015516,2]
[347964492,1736251839104,-500.0,0.00015516,2]
[347964494,1736251839117,-500.0,0.00015516,2]
[347964496,1736251839127,-500.0,0.00015516,2]
[347964498,1736251839137,-500.0,0.00015516,2]
[347964500,1736251839146,-500.0,0.00015516,2]
[347964502,1736251839155,-500.0,0.00015516,2]
[347964504,1736251839164,-500.0,0.00015516,2]
[347964506,1736251839174,-500.0,0.00015516,2]
[347964508,1736251839183,-500.0,0.00015516,2]
[347964510,1736251839193,-500.0,0.00015516,2]
[347964512,1736251839203,-500.0,0.00015516,2]
[347964514,1736251839213,-500.0,0.00015516,2]
[347964516,1736251839222,-500.0,0.00015516,2]
[347964519,1736251839232,-500.0,0.00015516,2]
[347964521,1736251839242,-500.0,0.00015516,2]
[347964522,1736251839251,-500.0,0.00015516,2]
[347964525,1736251839260,-500.0,0.00015516,2]
[347964527,1736251839270,-500.0,0.00015516,2]
[347964529,1736251839279,-500.0,0.00015516,2]
[347964531,1736251839289,-500.0,0.00015516,2]
[347964533,1736251839298,-500.0,0.00015516,2]
[347964535,1736251839307,-500.0,0.00015516,2]
[347964536,1736251839317,-500.0,0.00015516,2]
[347964539,1736251839326,-500.0,0.00015516,2]
[347964552,1736251839446,-500.0,0.00015516,2]
[347964553,1736251839456,-500.0,0.00015516,2]
[347964554,1736251839465,-500.0,0.00015516,2]
[347964555,1736251839474,-500.0,0.00015516,2]
[347964556,1736251839483,-500.0,0.00015516,2]
[347964557,1736251839492,-509.36238768,0.00015516,2]
[347964558,1736251839501,-500.0,0.00015516,2]
[347964559,1736251839511,-66475.96925116,0.00019088,7]
[347964638,1736251840638,-2017.2,0.00019088,7]
[347964639,1736251840687,-453.40201646,0.00019088,7]
[347965000,1736251846736,-394.0,0.00018574,2]
[347965002,1736251846746,-410.663,0.00018574,2]
[347965004,1736251846755,-6326.28693645,0.00019088,7]
[347965375,1736252486580,400.0,0.00013973,2]
[347965444,1736253031982,-600.0,0.00016496,2]
[347965446,1736253031993,-3020.3405546,0.00016496,2]
[347965448,1736253032003,-184.9005585,0.00016663,2]
[347965450,1736253032015,-393.25000464,0.000169,2]
[347965452,1736253032024,-2890.54742059,0.00017,2]